[Event "Titled Tuesday Blitz May 9 Late 2023"]
[White "Herman, Daniel"]
[Black "Schnaider, Ilan"]
[WhiteFideId "30935008"]
[BlackFideId "169013"]
[WhiteElo "1897"]
[BlackElo "2224"]
[Result "1/2-1/2"]
[Round "07"]
[TimeControl "180+2"]
[Date "2023.05.09"]
[WhiteClock "0:00:10"]
[BlackClock "0:00:08"]

1. Nf3 {[%clk 0:03:00]}  Nf6 {[%clk 0:02:59]} 2. c4 {[%clk 0:03:00]}  g6 {[%clk 0:02:59]} 3. Nc3 {[%clk 0:03:00]}  Bg7 {[%clk 0:03:00]} 4. e4 {[%clk 0:03:01]}  e5 {[%clk 0:03:00]} 5. d4 {[%clk 0:02:46]}  exd4 {[%clk 0:03:00]} 6. Nxd4 {[%clk 0:02:47]}  O-O {[%clk 0:03:00]} 7. Be2 {[%clk 0:02:34]}  Re8 {[%clk 0:03:00]} 8. f3 {[%clk 0:02:29]}  Nc6 {[%clk 0:02:52]} 9. Nc2 {[%clk 0:02:20]}  d6 {[%clk 0:02:34]} 10. O-O {[%clk 0:02:19]}  h6 {[%clk 0:02:34]} 11. Be3 {[%clk 0:02:17]}  Be6 {[%clk 0:02:34]} 12. Qd2 {[%clk 0:02:15]}  Kh7 {[%clk 0:02:34]} 13. Rad1 {[%clk 0:02:07]}  Ne5 {[%clk 0:02:33]} 14. b3 {[%clk 0:02:05]}  a5 {[%clk 0:02:27]} 15. Nd4 {[%clk 0:02:04]}  a4 {[%clk 0:02:21]} 16. Nxe6 {[%clk 0:01:59]}  Rxe6 {[%clk 0:02:21]} 17. Nxa4 {[%clk 0:01:58]}  c6 {[%clk 0:02:13]} 18. c5 {[%clk 0:01:31]}  d5 {[%clk 0:02:09]} 19. Nb6 {[%clk 0:01:28]}  Ra3 {[%clk 0:02:01]} 20. exd5 {[%clk 0:01:13]}  cxd5 {[%clk 0:01:56]} 21. Bd4 {[%clk 0:01:03]}  Qe7 {[%clk 0:01:49]} 22. Rfe1 {[%clk 0:01:00]}  Nc6 {[%clk 0:01:47]} 23. Bf2 {[%clk 0:00:51]}  Bf8 {[%clk 0:01:29]} 24. Bb5 {[%clk 0:00:48]}  d4 {[%clk 0:01:18]} 25. Bxc6 {[%clk 0:00:35]}  bxc6 {[%clk 0:01:13]} 26. Bxd4 {[%clk 0:00:35]}  Rxa2 {[%clk 0:01:05]} 27. Bxf6 {[%clk 0:00:17]}  Rxd2 {[%clk 0:00:46]} 28. Bxe7 {[%clk 0:00:17]}  Bxe7 {[%clk 0:00:47]} 29. Rxd2 {[%clk 0:00:16]}  Rxe1+ {[%clk 0:00:45]} 30. Kf2 {[%clk 0:00:16]}  Rb1 {[%clk 0:00:45]} 31. Nc4 {[%clk 0:00:10]}  Bxc5+ {[%clk 0:00:44]} 32. Kg3 {[%clk 0:00:10]}  Rxb3 {[%clk 0:00:44]} 33. Ne5 {[%clk 0:00:08]}  Rb7 {[%clk 0:00:42]} 34. Nxc6 {[%clk 0:00:08]}  Rb6 {[%clk 0:00:39]} 35. Ne5 {[%clk 0:00:08]}  Bd6 {[%clk 0:00:39]} 36. f4 {[%clk 0:00:09]}  Rb3+ {[%clk 0:00:36]} 37. Kf2 {[%clk 0:00:06]}  Bc5+ {[%clk 0:00:35]} 38. Ke2 {[%clk 0:00:04]}  Re3+ {[%clk 0:00:34]} 39. Kd1 {[%clk 0:00:05]}  f6 {[%clk 0:00:32]} 40. Rd7+ {[%clk 0:00:05]}  Kg8 {[%clk 0:00:33]} 41. Nxg6 {[%clk 0:00:05]}  Ra3 {[%clk 0:00:21]} 42. f5 {[%clk 0:00:05]}  Ra2 {[%clk 0:00:19]} 43. Rd8+ {[%clk 0:00:06]}  Kf7 {[%clk 0:00:18]} 44. Rd7+ {[%clk 0:00:06]}  Ke8 {[%clk 0:00:19]} 45. Rc7 {[%clk 0:00:07]}  Bd6 {[%clk 0:00:18]} 46. Rc6 {[%clk 0:00:07]}  Kd7 {[%clk 0:00:18]} 47. Rb6 {[%clk 0:00:07]}  Rxg2 {[%clk 0:00:18]} 48. Rb7+ {[%clk 0:00:07]}  Kc6 {[%clk 0:00:18]} 49. Rf7 {[%clk 0:00:08]}  Rxh2 {[%clk 0:00:12]} 50. Rxf6 {[%clk 0:00:08]}  h5 {[%clk 0:00:13]} 51. Ne5+ {[%clk 0:00:08]}  Kd5 {[%clk 0:00:13]} 52. Nf7 {[%clk 0:00:09]}  Bf4 {[%clk 0:00:12]} 53. Rg6 {[%clk 0:00:08]}  Rf2 {[%clk 0:00:10]} 54. f6 {[%clk 0:00:08]}  h4 {[%clk 0:00:11]} 55. Ng5 {[%clk 0:00:08]}  h3 {[%clk 0:00:09]} 56. Nxh3 {[%clk 0:00:08]}  Rd2+ {[%clk 0:00:06]} 57. Ke1 {[%clk 0:00:08]}  Rd4 {[%clk 0:00:07]} 58. Nxf4+ {[%clk 0:00:08]}  Rxf4 {[%clk 0:00:07]} 59. Ke2 {[%clk 0:00:09]}  Ke6 {[%clk 0:00:07]} 60. Rh6 {[%clk 0:00:09]}  Rf5 {[%clk 0:00:07]} 61. Ke3 {[%clk 0:00:09]}  Kf7 {[%clk 0:00:06]} 62. Ke4 {[%clk 0:00:10]}  Rxf6 {[%clk 0:00:07]} 63. Rxf6+ {[%clk 0:00:10]}  Kxf6 {[%clk 0:00:08]} 1/2-1/2


[Site "https://www.chess.com"]

[Event "Titled Tuesday Blitz May 9 Late 2023"]
[White "Sun, Rick"]
[Black "Perez Rodriguez, Jennifer"]
[WhiteFideId "30909481"]
[BlackFideId "3507831"]
[WhiteElo "2169"]
[BlackElo "2116"]
[Result "1-0"]
[Round "07"]
[TimeControl "180+2"]
[Date "2023.05.09"]
[WhiteClock "0:00:10"]
[BlackClock "0:00:00"]

1. e4 {[%clk 0:03:00]}  e5 {[%clk 0:02:59]} 2. Nf3 {[%clk 0:03:00]}  Nc6 {[%clk 0:02:59]} 3. Bb5 {[%clk 0:03:00]}  f5 {[%clk 0:02:59]} 4. d3 {[%clk 0:02:59]}  fxe4 {[%clk 0:02:59]} 5. dxe4 {[%clk 0:03:00]}  Nf6 {[%clk 0:02:59]} 6. Qe2 {[%clk 0:02:59]}  Bb4+ {[%clk 0:02:56]} 7. Nbd2 {[%clk 0:02:54]}  d6 {[%clk 0:02:45]} 8. c3 {[%clk 0:02:53]}  Ba5 {[%clk 0:02:45]} 9. b4 {[%clk 0:02:52]}  Bb6 {[%clk 0:02:45]} 10. a4 {[%clk 0:02:49]}  a6 {[%clk 0:02:38]} 11. Bc4 {[%clk 0:02:47]}  Qe7 {[%clk 0:02:33]} 12. Ba3 {[%clk 0:02:15]}  Be6 {[%clk 0:01:59]} 13. Ng5 {[%clk 0:01:39]}  Bxc4 {[%clk 0:01:56]} 14. Nxc4 {[%clk 0:01:40]}  Ba7 {[%clk 0:01:51]} 15. b5 {[%clk 0:01:38]}  axb5 {[%clk 0:01:35]} 16. axb5 {[%clk 0:01:39]}  Nd8 {[%clk 0:01:13]} 17. O-O {[%clk 0:00:51]}  h6 {[%clk 0:01:08]} 18. Nf3 {[%clk 0:00:50]}  Qe6 {[%clk 0:00:57]} 19. b6 {[%clk 0:00:23]}  Bxb6 {[%clk 0:00:53]} 20. Nxb6 {[%clk 0:00:23]}  cxb6 {[%clk 0:00:53]} 21. Bb4 {[%clk 0:00:13]}  Rc8 {[%clk 0:00:49]} 22. Rfd1 {[%clk 0:00:12]}  Nf7 {[%clk 0:00:49]} 23. Qb5+ {[%clk 0:00:10]}  Qd7 {[%clk 0:00:47]} 24. Qxb6 {[%clk 0:00:11]}  O-O {[%clk 0:00:40]} 25. Ra7 {[%clk 0:00:09]}  Nxe4 {[%clk 0:00:32]} 26. Rxb7 {[%clk 0:00:09]}  Qe6 {[%clk 0:00:25]} 27. Qe3 {[%clk 0:00:06]}  Nf6 {[%clk 0:00:20]} 28. Ra1 {[%clk 0:00:05]}  Nd5 {[%clk 0:00:15]} 29. Qe4 {[%clk 0:00:03]}  Nxc3 {[%clk 0:00:13]} 30. Bxc3 {[%clk 0:00:03]}  Rxc3 {[%clk 0:00:13]} 31. h3 {[%clk 0:00:03]}  Rc4 {[%clk 0:00:14]} 32. Qe2 {[%clk 0:00:03]}  Rfc8 {[%clk 0:00:13]} 33. Raa7 {[%clk 0:00:02]}  Rf4 {[%clk 0:00:11]} 34. g3 {[%clk 0:00:02]}  Rf6 {[%clk 0:00:11]} 35. Kg2 {[%clk 0:00:02]}  Rf8 {[%clk 0:00:10]} 36. Qe4 {[%clk 0:00:02]}  Qf5 {[%clk 0:00:06]} 37. Qxf5 {[%clk 0:00:03]}  Rxf5 {[%clk 0:00:07]} 38. Nh4 {[%clk 0:00:03]}  Rf6 {[%clk 0:00:07]} 39. g4 {[%clk 0:00:03]}  g5 {[%clk 0:00:06]} 40. Nf5 {[%clk 0:00:03]}  Kh7 {[%clk 0:00:05]} 41. Ne7 {[%clk 0:00:03]}  Kg7 {[%clk 0:00:05]} 42. Nf5+ {[%clk 0:00:03]}  Kh7 {[%clk 0:00:05]} 43. Re7 {[%clk 0:00:04]}  Kg6 {[%clk 0:00:04]} 44. f3 {[%clk 0:00:04]}  Rg8 {[%clk 0:00:03]} 45. Red7 {[%clk 0:00:04]}  e4 {[%clk 0:00:03]} 46. Ne7+ {[%clk 0:00:05]}  Kg7 {[%clk 0:00:03]} 47. Nxg8 {[%clk 0:00:06]}  Kg6 {[%clk 0:00:04]} 48. fxe4 {[%clk 0:00:07]}  Re6 {[%clk 0:00:04]} 49. Ne7+ {[%clk 0:00:07]}  Kf6 {[%clk 0:00:02]} 50. Nf5 {[%clk 0:00:08]}  Ke5 {[%clk 0:00:03]} 51. Rxf7 {[%clk 0:00:08]}  Kf4 {[%clk 0:00:03]} 52. Rfe7 {[%clk 0:00:09]}  Rxe4 {[%clk 0:00:04]} 53. Rxe4+ {[%clk 0:00:09]}  Kxe4 {[%clk 0:00:00]} 54. Ra6 {[%clk 0:00:10]} 1-0


[Site "https://www.chess.com"]

[Event "Titled Tuesday Blitz May 9 Late 2023"]
[White "Liu, Casper"]
[Black "Janaszak, Dawid"]
[WhiteFideId "1454153"]
[BlackFideId "1119206"]
[WhiteElo "2221"]
[BlackElo "2220"]
[Result "0-1"]
[Round "07"]
[TimeControl "180+2"]
[Date "2023.05.09"]
[WhiteClock "0:00:00"]
[BlackClock "0:00:33"]

1. b3 {[%clk 0:03:00]}  c5 {[%clk 0:02:54]} 2. Bb2 {[%clk 0:03:01]}  d6 {[%clk 0:02:54]} 3. g3 {[%clk 0:03:02]}  Nc6 {[%clk 0:02:52]} 4. Bg2 {[%clk 0:03:02]}  h5 {[%clk 0:02:52]} 5. Nf3 {[%clk 0:03:03]}  e5 {[%clk 0:02:51]} 6. d3 {[%clk 0:03:00]}  Be7 {[%clk 0:02:46]} 7. e3 {[%clk 0:02:59]}  h4 {[%clk 0:02:44]} 8. d4 {[%clk 0:02:58]}  e4 {[%clk 0:02:40]} 9. Nfd2 {[%clk 0:02:57]}  d5 {[%clk 0:02:38]} 10. dxc5 {[%clk 0:02:53]}  Bf6 {[%clk 0:02:38]} 11. Qc1 {[%clk 0:02:36]}  Bg4 {[%clk 0:02:22]} 12. c4 {[%clk 0:02:35]}  Nb4 {[%clk 0:02:22]} 13. Bf1 {[%clk 0:02:33]}  Bxb2 {[%clk 0:02:16]} 14. Qxb2 {[%clk 0:02:33]}  Qf6 {[%clk 0:02:17]} 15. Nc3 {[%clk 0:02:25]}  hxg3 {[%clk 0:02:10]} 16. fxg3 {[%clk 0:02:23]}  Qg5 {[%clk 0:01:55]} 17. Kf2 {[%clk 0:01:20]}  O-O-O {[%clk 0:01:40]} 18. a3 {[%clk 0:01:15]}  Qf5+ {[%clk 0:01:25]} 19. Kg1 {[%clk 0:01:14]}  Nd3 {[%clk 0:01:07]} 20. Bxd3 {[%clk 0:01:14]}  exd3 {[%clk 0:01:08]} 21. cxd5 {[%clk 0:00:57]}  Nf6 {[%clk 0:01:03]} 22. Rf1 {[%clk 0:00:55]}  Qg5 {[%clk 0:01:03]} 23. Rf4 {[%clk 0:00:32]}  Rhe8 {[%clk 0:00:53]} 24. e4 {[%clk 0:00:29]}  Nh5 {[%clk 0:00:50]} 25. Rf2 {[%clk 0:00:19]}  f5 {[%clk 0:00:44]} 26. Nc4 {[%clk 0:00:11]}  fxe4 {[%clk 0:00:42]} 27. Nb5 {[%clk 0:00:08]}  e3 {[%clk 0:00:40]} 28. Ncd6+ {[%clk 0:00:02]}  Kb8 {[%clk 0:00:40]} 29. Rf7 {[%clk 0:00:00]}  Bc8 {[%clk 0:00:33]} 0-1


[Site "https://www.chess.com"]

[Event "Titled Tuesday Blitz May 9 Late 2023"]
[White "KorolDimitriy75"]
[Black "tufferguy"]
[WhiteElo "2463"]
[BlackElo "2562"]
[Result "0-1"]
[Round "07"]
[TimeControl "180+2"]
[Date "2023.05.09"]
[WhiteClock "0:00:00"]
[BlackClock "0:00:16"]

1. d4 {[%clk 0:03:00]}  Nf6 {[%clk 0:02:59]} 2. c4 {[%clk 0:03:00]}  e5 {[%clk 0:02:56]} 3. dxe5 {[%clk 0:03:00]}  Ng4 {[%clk 0:02:56]} 4. Bf4 {[%clk 0:03:00]}  Nc6 {[%clk 0:02:55]} 5. Nf3 {[%clk 0:02:59]}  Bb4+ {[%clk 0:02:55]} 6. Nbd2 {[%clk 0:02:59]}  Qe7 {[%clk 0:02:56]} 7. e3 {[%clk 0:02:59]}  Ngxe5 {[%clk 0:02:55]} 8. Nxe5 {[%clk 0:03:00]}  Nxe5 {[%clk 0:02:56]} 9. Be2 {[%clk 0:03:00]}  d6 {[%clk 0:02:56]} 10. O-O {[%clk 0:03:00]}  O-O {[%clk 0:02:54]} 11. Nb3 {[%clk 0:02:45]}  Ng6 {[%clk 0:02:38]} 12. Bg3 {[%clk 0:02:45]}  Be6 {[%clk 0:02:35]} 13. a3 {[%clk 0:02:20]}  Bc5 {[%clk 0:02:34]} 14. Nxc5 {[%clk 0:02:14]}  dxc5 {[%clk 0:02:35]} 15. Qc2 {[%clk 0:02:05]}  Rfd8 {[%clk 0:02:30]} 16. Rfd1 {[%clk 0:02:03]}  f6 {[%clk 0:02:30]} 17. Bf3 {[%clk 0:01:59]}  c6 {[%clk 0:02:30]} 18. b3 {[%clk 0:01:53]}  Bf7 {[%clk 0:02:30]} 19. Qe4 {[%clk 0:01:40]}  Qxe4 {[%clk 0:02:23]} 20. Bxe4 {[%clk 0:01:41]}  Ne5 {[%clk 0:02:24]} 21. Kf1 {[%clk 0:01:19]}  Bg6 {[%clk 0:02:15]} 22. Bxg6 {[%clk 0:01:10]}  hxg6 {[%clk 0:02:16]} 23. Bxe5 {[%clk 0:01:03]}  fxe5 {[%clk 0:02:16]} 24. Ke2 {[%clk 0:01:03]}  b5 {[%clk 0:01:49]} 25. Rxd8+ {[%clk 0:00:49]}  Rxd8 {[%clk 0:01:49]} 26. Rd1 {[%clk 0:00:50]}  Rb8 {[%clk 0:01:49]} 27. Rd6 {[%clk 0:00:46]}  bxc4 {[%clk 0:01:21]} 28. bxc4 {[%clk 0:00:47]}  Rb2+ {[%clk 0:01:20]} 29. Kf3 {[%clk 0:00:46]}  Rc2 {[%clk 0:01:17]} 30. Rxg6 {[%clk 0:00:39]}  Rxc4 {[%clk 0:01:16]} 31. Rxc6 {[%clk 0:00:38]}  e4+ {[%clk 0:01:02]} 32. Kg3 {[%clk 0:00:34]}  a5 {[%clk 0:00:50]} 33. h4 {[%clk 0:00:24]}  Kf7 {[%clk 0:00:46]} 34. h5 {[%clk 0:00:24]}  Rc3 {[%clk 0:00:41]} 35. a4 {[%clk 0:00:20]}  c4 {[%clk 0:00:36]} 36. Rc5 {[%clk 0:00:18]}  Rc1 {[%clk 0:00:36]} 37. Rxa5 {[%clk 0:00:17]}  c3 {[%clk 0:00:37]} 38. Rc5 {[%clk 0:00:17]}  Ke7 {[%clk 0:00:36]} 39. Rc4 {[%clk 0:00:15]}  Kd6 {[%clk 0:00:33]} 40. Rxe4 {[%clk 0:00:15]}  Kc5 {[%clk 0:00:33]} 41. Re8 {[%clk 0:00:15]}  c2 {[%clk 0:00:30]} 42. Rc8+ {[%clk 0:00:14]}  Kb4 {[%clk 0:00:31]} 43. e4 {[%clk 0:00:13]}  Kxa4 {[%clk 0:00:28]} 44. f4 {[%clk 0:00:11]}  Kb3 {[%clk 0:00:27]} 45. Rb8+ {[%clk 0:00:10]}  Kc3 {[%clk 0:00:27]} 46. Rc8+ {[%clk 0:00:09]}  Kd3 {[%clk 0:00:27]} 47. e5 {[%clk 0:00:08]}  Re1 {[%clk 0:00:25]} 48. Kg4 {[%clk 0:00:07]}  c1=Q {[%clk 0:00:17]} 49. Rxc1 {[%clk 0:00:06]}  Rxc1 {[%clk 0:00:18]} 50. Kg5 {[%clk 0:00:01]}  Ke4 {[%clk 0:00:17]} 51. g4 {[%clk 0:00:00]}  Rc6 {[%clk 0:00:16]} 0-1


[Site "https://www.chess.com"]

[Event "Titled Tuesday Blitz May 9 Late 2023"]
[White "Altman, Joshua"]
[Black "Rios Escobar, Adan"]
[WhiteFideId "426210"]
[BlackFideId "3403645"]
[WhiteElo "2028"]
[BlackElo "2443"]
[Result "1-0"]
[Round "07"]
[TimeControl "180+2"]
[Date "2023.05.09"]
[WhiteClock "0:00:59"]
[BlackClock "0:00:06"]

1. d4 {[%clk 0:02:58]}  Nf6 {[%clk 0:02:59]} 2. c4 {[%clk 0:02:58]}  g6 {[%clk 0:02:50]} 3. Nc3 {[%clk 0:02:58]}  Bg7 {[%clk 0:02:50]} 4. Nf3 {[%clk 0:02:58]}  O-O {[%clk 0:02:50]} 5. Bg5 {[%clk 0:02:58]}  c5 {[%clk 0:02:49]} 6. e3 {[%clk 0:02:57]}  cxd4 {[%clk 0:02:47]} 7. Nxd4 {[%clk 0:02:57]}  Nc6 {[%clk 0:02:47]} 8. Be2 {[%clk 0:02:56]}  d6 {[%clk 0:02:47]} 9. O-O {[%clk 0:02:55]}  a6 {[%clk 0:02:47]} 10. Rc1 {[%clk 0:02:54]}  Rb8 {[%clk 0:02:45]} 11. Bf3 {[%clk 0:02:54]}  Bd7 {[%clk 0:02:43]} 12. b3 {[%clk 0:02:51]}  Nxd4 {[%clk 0:02:38]} 13. exd4 {[%clk 0:02:50]}  b5 {[%clk 0:02:39]} 14. c5 {[%clk 0:02:47]}  b4 {[%clk 0:02:20]} 15. Bxf6 {[%clk 0:02:36]}  exf6 {[%clk 0:02:09]} 16. Nd5 {[%clk 0:02:23]}  dxc5 {[%clk 0:02:07]} 17. dxc5 {[%clk 0:02:22]}  f5 {[%clk 0:02:00]} 18. c6 {[%clk 0:02:20]}  Bxc6 {[%clk 0:01:16]} 19. Rxc6 {[%clk 0:02:21]}  a5 {[%clk 0:01:15]} 20. g3 {[%clk 0:02:15]}  a4 {[%clk 0:01:13]} 21. bxa4 {[%clk 0:02:12]}  Qa5 {[%clk 0:01:12]} 22. Qb3 {[%clk 0:02:05]}  Rfd8 {[%clk 0:01:06]} 23. Ne7+ {[%clk 0:01:57]}  Kf8 {[%clk 0:01:04]} 24. Nd5 {[%clk 0:01:48]}  Rd7 {[%clk 0:01:04]} 25. Rfc1 {[%clk 0:01:44]}  Rbd8 {[%clk 0:01:00]} 26. Qxb4+ {[%clk 0:01:41]}  Qxb4 {[%clk 0:00:59]} 27. Nxb4 {[%clk 0:01:42]}  Ra7 {[%clk 0:00:55]} 28. Ra6 {[%clk 0:01:37]}  Rxa6 {[%clk 0:00:42]} 29. Nxa6 {[%clk 0:01:38]}  Rd4 {[%clk 0:00:41]} 30. Nc5 {[%clk 0:01:37]}  Rd2 {[%clk 0:00:37]} 31. Rd1 {[%clk 0:01:21]}  Rxa2 {[%clk 0:00:33]} 32. Rd7 {[%clk 0:01:15]}  Bc3 {[%clk 0:00:20]} 33. Rxf7+ {[%clk 0:01:11]}  Ke8 {[%clk 0:00:17]} 34. Bc6+ {[%clk 0:01:04]}  Kd8 {[%clk 0:00:10]} 35. Nb7+ {[%clk 0:01:01]}  Kc8 {[%clk 0:00:10]} 36. Nd6+ {[%clk 0:01:02]}  Kb8 {[%clk 0:00:09]} 37. Rb7+ {[%clk 0:01:02]}  Ka8 {[%clk 0:00:10]} 38. Rb2+ {[%clk 0:01:01]}  Ka7 {[%clk 0:00:10]} 39. Rxa2 {[%clk 0:00:59]}  Kb6 {[%clk 0:00:11]} 40. Bb5 {[%clk 0:00:58]}  h5 {[%clk 0:00:10]} 41. Nc4+ {[%clk 0:00:59]}  Ka7 {[%clk 0:00:10]} 42. a5 {[%clk 0:00:59]}  h4 {[%clk 0:00:10]} 43. a6 {[%clk 0:00:59]}  h3 {[%clk 0:00:09]} 44. Re2 {[%clk 0:00:59]}  g5 {[%clk 0:00:08]} 45. Re7+ {[%clk 0:00:59]}  Kb8 {[%clk 0:00:09]} 46. a7+ {[%clk 0:00:59]}  Kc8 {[%clk 0:00:06]} 47. a8=Q# {[%clk 0:00:59]} 1-0


[Site "https://www.chess.com"]

[Event "Titled Tuesday Blitz May 9 Late 2023"]
[White "Sreyas Payyappat"]
[Black "Golubev, Mikhail"]
[WhiteFideId "46674969"]
[BlackFideId "14100983"]
[WhiteElo "2043"]
[BlackElo "2374"]
[Result "1-0"]
[Round "07"]
[TimeControl "180+2"]
[Date "2023.05.09"]
[WhiteClock "0:00:41"]
[BlackClock "0:00:00"]

1. e4 {[%clk 0:03:00]}  c5 {[%clk 0:02:59]} 2. Nf3 {[%clk 0:03:00]}  d6 {[%clk 0:03:00]} 3. d4 {[%clk 0:03:01]}  cxd4 {[%clk 0:03:00]} 4. Nxd4 {[%clk 0:03:02]}  Nf6 {[%clk 0:03:00]} 5. Nc3 {[%clk 0:03:02]}  g6 {[%clk 0:03:00]} 6. f4 {[%clk 0:03:02]}  Nc6 {[%clk 0:03:00]} 7. Be3 {[%clk 0:03:01]}  Bg7 {[%clk 0:02:55]} 8. Be2 {[%clk 0:03:00]}  O-O {[%clk 0:02:54]} 9. Qd3 {[%clk 0:02:56]}  Bd7 {[%clk 0:02:27]} 10. O-O {[%clk 0:02:55]}  Rc8 {[%clk 0:02:24]} 11. Rad1 {[%clk 0:02:53]}  Ng4 {[%clk 0:02:14]} 12. Bxg4 {[%clk 0:02:48]}  Bxg4 {[%clk 0:02:15]} 13. Rd2 {[%clk 0:02:47]}  a6 {[%clk 0:01:56]} 14. Nd5 {[%clk 0:02:40]}  e6 {[%clk 0:01:46]} 15. Nxc6 {[%clk 0:02:38]}  Rxc6 {[%clk 0:01:17]} 16. Nb4 {[%clk 0:02:37]}  Rb6 {[%clk 0:01:09]} 17. c3 {[%clk 0:01:56]}  a5 {[%clk 0:01:08]} 18. h3 {[%clk 0:01:46]}  axb4 {[%clk 0:01:06]} 19. Bxb6 {[%clk 0:01:45]}  Qxb6+ {[%clk 0:01:03]} 20. Kh1 {[%clk 0:01:44]}  bxc3 {[%clk 0:00:39]} 21. bxc3 {[%clk 0:01:43]}  Bh5 {[%clk 0:00:34]} 22. g4 {[%clk 0:01:42]}  Rc8 {[%clk 0:00:34]} 23. Rc2 {[%clk 0:01:35]}  Qa5 {[%clk 0:00:23]} 24. gxh5 {[%clk 0:01:25]}  Qxh5 {[%clk 0:00:23]} 25. Qf3 {[%clk 0:01:22]}  Qb5 {[%clk 0:00:21]} 26. Rfc1 {[%clk 0:01:19]}  f5 {[%clk 0:00:17]} 27. Re1 {[%clk 0:01:12]}  Qc6 {[%clk 0:00:12]} 28. Kg2 {[%clk 0:01:10]}  d5 {[%clk 0:00:07]} 29. exf5 {[%clk 0:01:05]}  gxf5 {[%clk 0:00:06]} 30. Kh2 {[%clk 0:01:04]}  Re8 {[%clk 0:00:06]} 31. Rg2 {[%clk 0:01:00]}  Kh8 {[%clk 0:00:06]} 32. Reg1 {[%clk 0:00:55]}  Re7 {[%clk 0:00:06]} 33. Qe3 {[%clk 0:00:50]}  h6 {[%clk 0:00:05]} 34. Rg6 {[%clk 0:00:46]}  Kh7 {[%clk 0:00:03]} 35. Qg3 {[%clk 0:00:43]}  Qxc3 {[%clk 0:00:00]} 36. Rxh6+ {[%clk 0:00:41]} 1-0


[Site "https://www.chess.com"]

[Event "Titled Tuesday Blitz May 9 Late 2023"]
[White "FoxOnTheRun97"]
[Black "Balla, Tamas-Kristof"]
[BlackFideId "1208497"]
[WhiteElo "2520"]
[BlackElo "2334"]
[Result "1-0"]
[Round "07"]
[TimeControl "180+2"]
[Date "2023.05.09"]
[WhiteClock "0:00:02"]
[BlackClock "0:00:00"]

1. d4 {[%clk 0:03:00]}  Nf6 {[%clk 0:02:57]} 2. Bg5 {[%clk 0:03:00]}  Ne4 {[%clk 0:02:57]} 3. h4 {[%clk 0:03:00]}  c5 {[%clk 0:02:55]} 4. d5 {[%clk 0:03:00]}  Nxg5 {[%clk 0:02:54]} 5. hxg5 {[%clk 0:03:01]}  e6 {[%clk 0:02:55]} 6. dxe6 {[%clk 0:02:50]}  dxe6 {[%clk 0:02:47]} 7. Qxd8+ {[%clk 0:02:48]}  Kxd8 {[%clk 0:02:48]} 8. Nc3 {[%clk 0:02:44]}  a6 {[%clk 0:02:46]} 9. e3 {[%clk 0:02:40]}  Nc6 {[%clk 0:02:41]} 10. g6 {[%clk 0:02:39]}  fxg6 {[%clk 0:02:31]} 11. Nf3 {[%clk 0:02:40]}  Be7 {[%clk 0:02:25]} 12. Bd3 {[%clk 0:02:34]}  Bf6 {[%clk 0:02:14]} 13. Bxg6 {[%clk 0:02:28]}  Bxc3+ {[%clk 0:02:13]} 14. bxc3 {[%clk 0:02:29]}  h6 {[%clk 0:02:12]} 15. Be4 {[%clk 0:02:22]}  Kc7 {[%clk 0:02:12]} 16. Bxc6 {[%clk 0:02:14]}  Kxc6 {[%clk 0:02:11]} 17. Ne5+ {[%clk 0:02:13]}  Kc7 {[%clk 0:02:11]} 18. f4 {[%clk 0:02:10]}  Bd7 {[%clk 0:02:06]} 19. g4 {[%clk 0:02:02]}  Bc6 {[%clk 0:02:03]} 20. Rh2 {[%clk 0:02:02]}  Rhd8 {[%clk 0:01:55]} 21. Rd1 {[%clk 0:01:56]}  Rxd1+ {[%clk 0:01:52]} 22. Kxd1 {[%clk 0:01:57]}  Rd8+ {[%clk 0:01:49]} 23. Kc1 {[%clk 0:01:57]}  Be4 {[%clk 0:01:49]} 24. c4 {[%clk 0:01:45]}  b5 {[%clk 0:01:44]} 25. Rh5 {[%clk 0:01:28]}  Kb6 {[%clk 0:01:15]} 26. g5 {[%clk 0:01:22]}  hxg5 {[%clk 0:01:13]} 27. Rxg5 {[%clk 0:01:23]}  Rh8 {[%clk 0:01:11]} 28. Nd7+ {[%clk 0:01:17]}  Kc6 {[%clk 0:01:02]} 29. Nxc5 {[%clk 0:01:14]}  Rh1+ {[%clk 0:01:01]} 30. Kb2 {[%clk 0:01:14]}  Bf5 {[%clk 0:01:01]} 31. Nb3 {[%clk 0:00:39]}  bxc4 {[%clk 0:00:19]} 32. Nd4+ {[%clk 0:00:39]}  Kd6 {[%clk 0:00:19]} 33. Nxf5+ {[%clk 0:00:32]}  exf5 {[%clk 0:00:20]} 34. Rxf5 {[%clk 0:00:33]}  Re1 {[%clk 0:00:20]} 35. Re5 {[%clk 0:00:33]}  g5 {[%clk 0:00:19]} 36. Rxg5 {[%clk 0:00:30]}  Rxe3 {[%clk 0:00:19]} 37. Rg6+ {[%clk 0:00:30]}  Kc5 {[%clk 0:00:18]} 38. Rxa6 {[%clk 0:00:29]}  Rf3 {[%clk 0:00:18]} 39. f5 {[%clk 0:00:28]}  Kb5 {[%clk 0:00:13]} 40. Rf6 {[%clk 0:00:26]}  Kb4 {[%clk 0:00:13]} 41. a3+ {[%clk 0:00:24]}  Ka4 {[%clk 0:00:13]} 42. Rf8 {[%clk 0:00:20]}  c3+ {[%clk 0:00:12]} 43. Ka2 {[%clk 0:00:20]}  Rf2 {[%clk 0:00:13]} 44. Ra8+ {[%clk 0:00:19]}  Kb5 {[%clk 0:00:13]} 45. Rb8+ {[%clk 0:00:18]}  Kc4 {[%clk 0:00:11]} 46. Rb4+ {[%clk 0:00:16]}  Kc5 {[%clk 0:00:11]} 47. Kb3 {[%clk 0:00:16]}  Rxf5 {[%clk 0:00:10]} 48. Kxc3 {[%clk 0:00:14]}  Rf3+ {[%clk 0:00:10]} 49. Kb2 {[%clk 0:00:15]}  Kc6 {[%clk 0:00:11]} 50. a4 {[%clk 0:00:14]}  Kc5 {[%clk 0:00:11]} 51. Rb3 {[%clk 0:00:14]}  Rf4 {[%clk 0:00:10]} 52. Ka3 {[%clk 0:00:14]}  Rf1 {[%clk 0:00:10]} 53. Rc3+ {[%clk 0:00:14]}  Kb6 {[%clk 0:00:10]} 54. Kb4 {[%clk 0:00:13]}  Rf4+ {[%clk 0:00:10]} 55. Rc4 {[%clk 0:00:13]}  Rf1 {[%clk 0:00:09]} 56. a5+ {[%clk 0:00:13]}  Ka6 {[%clk 0:00:10]} 57. Rc6+ {[%clk 0:00:13]}  Kb7 {[%clk 0:00:10]} 58. Rb6+ {[%clk 0:00:13]}  Ka7 {[%clk 0:00:10]} 59. c4 {[%clk 0:00:13]}  Rh1 {[%clk 0:00:09]} 60. Kb5 {[%clk 0:00:12]}  Rh5+ {[%clk 0:00:09]} 61. c5 {[%clk 0:00:12]}  Rh1 {[%clk 0:00:09]} 62. Rg6 {[%clk 0:00:09]}  Rb1+ {[%clk 0:00:07]} 63. Kc6 {[%clk 0:00:08]}  Rc1 {[%clk 0:00:06]} 64. Rg8 {[%clk 0:00:06]}  Rc2 {[%clk 0:00:04]} 65. Kd6 {[%clk 0:00:05]}  Rd2+ {[%clk 0:00:04]} 66. Kc7 {[%clk 0:00:05]}  Rh2 {[%clk 0:00:04]} 67. c6 {[%clk 0:00:04]}  Rh7+ {[%clk 0:00:04]} 68. Kc8 {[%clk 0:00:04]}  Rh5 {[%clk 0:00:02]} 69. c7 {[%clk 0:00:03]}  Rxa5 {[%clk 0:00:02]} 70. Rg4 {[%clk 0:00:03]}  Ra1 {[%clk 0:00:01]} 71. Kd7 {[%clk 0:00:02]}  Rd1+ {[%clk 0:00:01]} 72. Kc6 {[%clk 0:00:02]}  Rc1+ {[%clk 0:00:01]} 73. Kd6 {[%clk 0:00:02]}  Rd1+ {[%clk 0:00:00]} 74. Kc6 {[%clk 0:00:02]} 1-0


[Site "https://www.chess.com"]